Workbook

Sheet Цены
A1: МНН | B1: ТН | C1: Цена | D1: Пластины деление | X1: Пластины умножение
D2: 1 | F2: 2 | H2: 3 | J2: 4 | L2: 5 | N2: 6 | P2: 7 | R2: 8 | T2: 9 | V2: 10 | X2: 2 | Z2: 3 | AB2: 4 | AD2: 5 | AF2: 6 | AH2: 7 | AJ2: 8
D3: 1 | E3: 10 | F3: 2 | G3: 20 | H3: 3 | I3: 30 | J3: 4 | K3: 40 | L3: 5 | M3: 50 | N3: 6 | O3: 60 | P3: 7 | Q3: 70 | R3: 8 | S3: 80 | T3: 9 | U3: 90 | V3: 10 | W3: 100
A4: Парацетамол | B4: Парацетамол, таб 500 мг №10 | C4: 9.9 | D4: =$C4/1 -> 9.9 | E4: =E$3/RIGHT($B4,LEN($B4)-SEARCH("№",$B4)) -> 1 | X4: =$C4*X$2 -> 19.8 | Y4: =X$2 -> 2 | Z4: =$C4*Z$2 -> 29.7 | AA4: =Z$2 -> 3 | AB4: 39.6 | AC4: =AB$2 -> 4 | AD4: 49.5 | AE4: =AD$2 -> 5 | AF4: 59.4 | AG4: =AF$2 -> 6 | AH4: 69.3 | AI4: =AH$2 -> 7 | AJ4: 79.2 | AK4: =AJ$2 -> 8
A5: Парацетамол | B5: Парацетамол, таб 500 мг №10 | C5: 9.46 | D5: =$C5/1 -> 9.46 | E5: =E$3/RIGHT($B5,LEN($B5)-SEARCH("№",$B5)) -> 1 | X5: =$C5*X$2 -> 18.92 | Y5: =$X$2 -> 2 | Z5: 28.38 | AA5: =Z$2 -> 3 | AB5: 37.84 | AC5: 4 | AD5: 47.3 | AE5: =AD$2 -> 5 | AF5: 56.76 | AG5: =AF$2 -> 6 | AH5: 66.22 | AI5: =AH$2 -> 7 | AJ5: 75.68 | AK5: =AJ$2 -> 8
A6: Парацетамол | B6: Парацетамол, таб 500 мг №20 | C6: 26.51 | D6: =$C6/2 -> 13.255 | E6: 0.5 | F6: =$D6*F$2 -> 26.51 | G6: =G$3/RIGHT($B6,LEN($B6)-SEARCH("№",$B6)) -> 1 | X6: 53.02 | Y6: 2 | Z6: 79.53 | AA6: 3 | AB6: 106.04 | AC6: 4 | AD6: 132.55 | AE6: =AD$2 -> 5 | AF6: 159.06 | AG6: =AF$2 -> 6 | AH6: 185.57 | AI6: =AH$2 -> 7 | AJ6: 212.08 | AK6: =AJ$2 -> 8
A7: Парацетамол | B7: Парацетамол Медисорб, таб. 500 мг №30 | C7: 24.3 | D7: =$C7/3 -> 8.1 | E7: 0.3333333333 | F7: 16.2 | G7: 0.6666666667 | H7: 24.3 | I7: =I$3/RIGHT($B7,LEN($B7)-SEARCH("№",$B7)) -> 1 | X7: 48.6 | Y7: 2 | Z7: 72.9 | AA7: 3 | AB7: 97.2 | AC7: 4 | AD7: 121.5 | AE7: =AD$2 -> 5 | AF7: 145.8 | AG7: =AF$2 -> 6 | AH7: 170.1 | AI7: =AH$2 -> 7 | AJ7: 194.4 | AK7: =AJ$2 -> 8
A8: Парацетамол | B8: Парацетамол Медисорб, таб. 500 мг №30 | C8: 26.1 | D8: =$C8/3 -> 8.7 | E8: =E$3/RIGHT($B8,LEN($B8)-SEARCH("№",$B8)) -> 0.3333333333 | F8: 17.4 | G8: 0.6666666667 | H8: 26.1 | I8: =I$3/RIGHT($B8,LEN($B8)-SEARCH("№",$B8)) -> 1 | X8: 52.2 | Y8: 2 | Z8: 78.3 | AA8: 3 | AB8: 104.4 | AC8: 4 | AD8: 130.5 | AE8: =AD$2 -> 5 | AF8: 156.6 | AG8: =AF$2 -> 6 | AH8: 182.7 | AI8: =AH$2 -> 7 | AJ8: 208.8 | AK8: =AJ$2 -> 8
A9: Ривароксабан | B9: Ксарелто, таб п п/о 10 мг №30 | C9: 3609 | D9: =$C9/3 -> 1203 | E9: 0.3333333333 | F9: 2406 | G9: 0.6666666667 | H9: 3609 | I9: 1 | X9: 7218 | Y9: 2 | Z9: 10827 | AA9: 3 | AB9: 14436 | AC9: 4 | AD9: 18045 | AE9: =AD$2 -> 5 | AF9: 21654 | AG9: =AF$2 -> 6 | AH9: 25263 | AI9: =AH$2 -> 7 | AJ9: 28872 | AK9: =AJ$2 -> 8
A10: Ривароксабан | B10: Ксарелто, таб п п/о 10 мг №30 | C10: 2498.1 | D10: 832.7 | E10: 0.3333333333 | F10: 1665.4 | G10: 0.6666666667 | H10: 2498.1 | I10: 1 | X10: 4996.2 | Y10: 2 | Z10: 7494.3 | AA10: 3 | AB10: 9992.4 | AC10: 4 | AD10: 12490.5 | AE10: =AD$2 -> 5 | AF10: 14988.6 | AG10: =AF$2 -> 6 | AH10: 17486.7 | AI10: =AH$2 -> 7 | AJ10: 19984.8 | AK10: =AJ$2 -> 8
A11: Ривароксабан | B11: Ксарелто, таб п п/о 10 мг №100 | C11: 8994 | D11: =$C11/10 -> 899.4 | E11: =E$3/RIGHT($B11,LEN($B11)-SEARCH("№",$B11)) -> 0.1 | F11: 1798.8 | G11: 0.2 | H11: 2698.2 | I11: 0.3 | J11: 3597.6 | K11: 0.4 | L11: 4497 | M11: 0.5 | N11: 5396.4 | O11: 0.6 | P11: 6295.8 | Q11: 0.7 | R11: 7195.2 | S11: 0.8 | T11: 8094.6 | U11: 0.9 | V11: 8994 | W11: =W$3/RIGHT($B11,LEN($B11)-SEARCH("№",$B11)) -> 1 | X11: 17988 | Y11: 2 | Z11: 26982 | AA11: 3 | AB11: 35976 | AC11: 4 | AD11: 44970 | AE11: =AD$2 -> 5 | AF11: 53964 | AG11: =AF$2 -> 6 | AH11: 62958 | AI11: =AH$2 -> 7 | AJ11: 71952 | AK11: =AJ$2 -> 8
A12: Ривароксабан | B12: Ксарелто, таб п п/о 10 мг №100 | C12: 8624 | D12: =$C12/10 -> 862.4 | E12: 0.1 | F12: =$D12*F$2 -> 1724.8 | G12: 0.2 | H12: 2587.2 | I12: =I$3/RIGHT($B12,LEN($B12)-SEARCH("№",$B12)) -> 0.3 | J12: 3449.6 | K12: =K$3/RIGHT($B12,LEN($B12)-SEARCH("№",$B12)) -> 0.4 | L12: 4312 | M12: =M$3/RIGHT($B12,LEN($B12)-SEARCH("№",$B12)) -> 0.5 | N12: 5174.4 | O12: =O$3/RIGHT($B12,LEN($B12)-SEARCH("№",$B12)) -> 0.6 | P12: 6036.8 | Q12: =Q$3/RIGHT($B12,LEN($B12)-SEARCH("№",$B12)) -> 0.7 | R12: 6899.2 | S12: =S$3/RIGHT($B12,LEN($B12)-SEARCH("№",$B12)) -> 0.8 | T12: 7761.6 | U12: =U$3/RIGHT($B12,LEN($B12)-SEARCH("№",$B12)) -> 0.9 | V12: 8624 | W12: =W$3/RIGHT($B12,LEN($B12)-SEARCH("№",$B12)) -> 1 | X12: 17248 | Y12: 2 | Z12: 25872 | AA12: 3 | AB12: 34496 | AC12: 4 | AD12: 43120 | AE12: =AD$2 -> 5 | AF12: 51744 | AG12: =AF$2 -> 6 | AH12: 60368 | AI12: =AH$2 -> 7 | AJ12: =$C12*AJ$2 -> 68992 | AK12: =AJ$2 -> 8

Sheet Таблетки
D1: Пластин | E1: Сумма | F1: Цена | I1: Пластин | J1: Сумма | K1: Цена
A2: Ривораксабан | B2: табл. | D2: =Get_Plastin(A2,E2) -> 0.2 | E2: 1798.8 | F2: =Get_Pack(A2,E2) -> 8994 | I2: 0.2 | J2: 1798.8 | K2: 8994
A3: Ривораксабан | B3: табл. | D3: =Get_Plastin(A3,E3) -> 0.2 | E3: 1798.8 | F3: =Get_Pack(A3,E3) -> 8994 | I3: 0.2 | J3: 1798.8 | K3: 8994
A4: Ривораксабан | B4: таблетки | D4: 1 | E4: 3609 | F4: 3609 | I4: 1 | J4: 3609 | K4: 3609
A5: Ривораксабан | B5: таблетки | D5: 1 | E5: 3609 | F5: 3609 | I5: 1 | J5: 3609 | K5: 3609
A6: Ривораксабан | B6: таблетки | D6: 2 | E6: 7218 | F6: 3609 | I6: 2 | J6: 7218 | K6: 3609
A7: Ривораксабан | B7: таблетки | D7: 1 | E7: 3609 | F7: 3609 | I7: 1 | J7: 3609 | K7: 3609
A8: Ривораксабан | B8: таблетки | D8: 0.1 | E8: 899.4 | F8: 8994 | I8: 0.1 | J8: 899.4 | K8: 8994
A9: Ривораксабан | B9: таблетки | D9: 0.1 | E9: 899.4 | F9: 8994 | I9: 0.1 | J9: 899.4 | K9: 8994
A10: Ривораксабан | B10: таблетки | D10: 0.3 | E10: 2587.2 | F10: 8624 | I10: 0.3 | J10: 2587.2 | K10: 8624
A11: Ривораксабан | B11: таблетки | D11: 0.3 | E11: 2587.2 | F11: 8624 | I11: 0.3 | J11: 2587.2 | K11: 8624
A12: Ривораксабан | B12: таблетки | D12: 0.1 | E12: 862.4 | F12: 8624 | I12: 0.1 | J12: 862.4 | K12: 8624
A13: Ривораксабан | B13: таблетки | D13: 0.1 | E13: 862.4 | F13: 8624 | I13: 0.1 | J13: 862.4 | K13: 8624
A14: Ривораксабан | B14: таблетки | D14: 0.2 | E14: 1724.8 | F14: 8624 | I14: 0.2 | J14: 1724.8 | K14: 8624
A15: Ривораксабан | B15: таблетки | D15: 0.2 | E15: 1724.8 | F15: 8624 | I15: 0.2 | J15: 1724.8 | K15: 8624
A16: парацетамол | B16: таблетки | D16: 0.3333333333 | E16: 8.1 | F16: 24.3 | I16: 0.3333333333 | J16: 8.1 | K16: 24.3
A17: парацетамол | B17: таблетки | D17: 0.3333333333 | E17: 8.1 | F17: 24.3 | I17: 0.3333333333 | J17: 8.1 | K17: 24.3
A18: парацетамол | B18: таблетки | D18: 3 | E18: 79.53 | F18: 26.51 | I18: 3 | J18: 79.53 | K18: 26.51
I19: проверка
